bitfinex/quotes_BTCUSD_20220111
["timestamp","ask_amount","ask_price","bid_price","bid_amount"]
[1641880954354,0.371088,42172.0,42171.0,0.02000055]
[1641880955156,0.389088,42172.0,42171.0,0.02000055]
[1641880956188,0.018,42172.0,42171.0,0.02000055]
[1641880956389,0.0007565,42174.0,42171.0,0.02000055]
[1641880957187,0.0007565,42174.0,42173.0,0.4060031]
[1641880957388,0.26067895,42178.0,42171.0,0.03100055]
[1641880957588,0.00075868,42176.0,42171.0,0.03100055]
[1641880957788,0.371088,42175.0,42171.0,0.03100055]
[1641880958289,0.371088,42175.0,42173.0,0.00057175]
[1641880958491,0.371088,42175.0,42171.0,0.03042794]
[1641880958494,0.371088,42172.0,42171.0,9.969e-05]
[1641880958688,0.371088,42172.0,42163.0,0.42]
[1641880958689,0.60184555,42172.0,42163.0,0.42]
[1641880958988,0.70184555,42172.0,42163.0,0.42]
[1641880959187,0.71884555,42172.0,42163.0,0.42]
[1641880959438,0.30284989,42170.0,42163.0,0.42]
[1641880959640,0.24168684,42166.0,42163.0,0.42]
[1641880960641,0.32274622,42165.0,42163.0,0.42]
[1641880961240,0.34074622,42165.0,42163.0,0.42]
[1641880961638,0.018,42165.0,42163.0,0.42]
[1641880962441,0.00714369,42167.0,42163.0,0.42]
[1641880962841,0.00714369,42167.0,42164.0,0.371088]
[1641880963295,0.03314369,42167.0,42165.0,0.30344797]
[1641880963494,0.03314369,42167.0,42166.0,0.185416]
[1641880964393,0.00714369,42167.0,42166.0,0.185416]
[1641880965095,0.02214369,42167.0,42166.0,0.195416]
[1641880965495,0.02214369,42167.0,42166.0,0.495416]
[1641880966297,0.02214369,42167.0,42166.0,0.485416]
[1641880966498,0.00714369,42167.0,42166.0,0.485416]
[1641880966936,0.00714369,42167.0,42166.0,0.185416]
[1641880967138,0.00714369,42167.0,42166.0,0.252416]
[1641880967738,0.00714369,42167.0,42166.0,0.202416]
[1641880968140,0.0076282,42167.0,42166.0,0.2029193]
[1641880968543,0.0076282,42167.0,42166.0,0.1859193]
[1641880969242,0.0076282,42167.0,42166.0,0.2019193]
[1641880971089,0.0076282,42167.0,42166.0,0.2049193]
[1641880972387,0.0076282,42167.0,42166.0,0.1859193]
[1641880972588,0.00699636,42167.0,42166.0,0.1859193]
[1641880972799,0.0007581,42170.0,42166.0,0.3859193]
[1641880972993,0.35357914,42179.0,42166.0,0.53450361]
[1641880973190,0.00075814,42170.0,42166.0,0.44408761]
[1641880973389,0.00075814,42170.0,42167.0,0.57618936]
[1641880973591,0.00075814,42170.0,42169.0,0.00128882]
[1641880973789,0.00075814,42170.0,42169.0,0.18666082]
[1641880974188,0.35357914,42179.0,42169.0,0.23666082]
[1641880974448,0.35357914,42179.0,42176.0,0.44472021]
[1641880974743,1.41917837,42181.0,42174.0,0.26396434]
[1641880974944,0.35357914,42180.0,42174.0,0.26396434]
[1641880975144,0.03,42179.0,42176.0,0.005]
[1641880976344,0.0007582,42180.0,42174.0,0.63570826]
[1641880976745,0.34997456,42184.0,42174.0,0.26396434]
[1641880976946,0.00075819,42179.0,42174.0,0.26396434]
[1641880977147,0.00075819,42179.0,42174.0,0.26596434]
[1641880977348,0.32386559,42179.0,42174.0,0.26596434]
[1641880977548,0.00075819,42179.0,42174.0,0.26596434]
[1641880977949,0.01,42180.0,42174.0,0.26596434]
[1641880978190,0.00075812,42179.0,42176.0,0.00042144]
[1641880979095,0.34997456,42184.0,42176.0,0.00342144]
[1641880979291,0.007,42179.0,42176.0,0.00342144]
[1641880980493,0.00075813,42180.0,42176.0,0.00042144]
[1641880980694,0.371088,42179.0,42176.0,0.00042144]
[1641880981093,0.371088,42179.0,42176.0,0.00342144]
[1641880981497,0.13766454,42184.0,42176.0,0.00342144]
[1641880981843,0.00075815,42180.0,42176.0,0.00342144]
[1641880982641,0.0012662,42184.0,42176.0,0.00342144]
[1641880982840,0.00075815,42180.0,42176.0,0.00342144]
[1641880983240,0.00075815,42180.0,42178.0,0.00042087]
[1641880983839,0.0012662,42184.0,42178.0,0.00042087]
[1641880984043,0.00075816,42181.0,42178.0,0.00042087]
[1641880985146,0.9886,42185.0,42178.0,0.00642087]
[1641880985344,0.00075815,42182.0,42178.0,0.00642087]
[1641880985593,0.371088,42181.0,42178.0,0.00642087]
[1641880986394,0.371088,42181.0,42178.0,0.00042087]
[1641880986896,0.62504694,42181.0,42178.0,0.00042087]
[1641880987594,0.371088,42181.0,42178.0,0.00042087]
[1641880988293,0.371088,42181.0,42179.0,0.00039287]
[1641880991345,0.13138241,42180.0,42179.0,0.00039287]
[1641880991546,0.50776003,42180.0,42179.0,0.00039287]
[1641880991747,0.371088,42180.0,42179.0,0.00039287]
[1641880993197,0.371088,42180.0,42179.0,0.00042058]
[1641880998139,0.371088,42180.0,42179.0,0.00039287]
[1641881003292,0.371088,42180.0,42179.0,0.00042058]
[1641881005141,0.2842,42181.0,42179.0,0.00042058]
[1641881006844,0.371088,42180.0,42179.0,0.00042058]
[1641881008198,0.371088,42180.0,42179.0,0.00039287]
[1641881013246,0.371088,42180.0,42179.0,0.00442058]
[1641881014548,0.371088,42180.0,42179.0,0.00042058]
[1641881017493,0.366088,42180.0,42179.0,0.00042058]
[1641881018294,0.366088,42180.0,42179.0,0.00039287]
[1641881023293,0.366088,42180.0,42179.0,0.00042058]
[1641881024296,0.7233292,42180.0,42179.0,0.00042058]
[1641881024496,0.8187592,42180.0,42179.0,0.00042058]
[1641881024696,0.8660592,42180.0,42179.0,0.00042058]
[1641881024894,3.57502246,42180.0,42179.0,0.00042058]
[1641881025095,4.37686829,42180.0,42179.0,0.00042058]
[1641881025297,4.3921538,42180.0,42179.0,0.00042058]
[1641881025897,3.84960597,42180.0,42179.0,0.00042058]
[1641881026303,3.79960597,42180.0,42179.0,0.00042058]
[1641881026497,3.67630797,42180.0,42179.0,0.00042058]
[1641881026698,4.47836676,42180.0,42179.0,0.00042058]
[1641881026942,1.7694035,42180.0,42179.0,0.00042058]
[1641881027344,1.07834471,42180.0,42179.0,0.00042058]
[1641881027942,1.72834471,42180.0,42179.0,0.00042058]
[1641881028142,1.72834471,42180.0,42178.0,0.0003932]
[1641881028344,1.72834471,42180.0,42178.0,3.2e-06]
[1641881028345,0.74687441,42179.0,42178.0,3.2e-06]
[1641881028543,2.15439364,42179.0,42173.0,0.00042058]
[1641881028742,1.35109881,42174.0,42173.0,0.00042058]
[1641881028943,1.81945681,42174.0,42173.0,0.00042058]
[1641881029142,1.99900297,42174.0,42173.0,0.00042058]
[1641881029342,2.01300297,42174.0,42173.0,0.00042058]
[1641881029543,0.91476365,42174.0,42173.0,0.00042058]
[1641881030601,1.27965514,42174.0,42173.0,0.00042058]
[1641881031102,1.07965514,42174.0,42173.0,0.00042058]
[1641881031299,1.09165514,42174.0,42173.0,0.00042058]
[1641881032504,1.27965514,42174.0,42173.0,0.00042058]
[1641881033305,1.29065514,42174.0,42162.0,0.33493658]
[1641881033504,0.118613,42169.0,42162.0,0.00046745]
[1641881033707,0.31258983,42168.0,42162.0,0.00046745]
[1641881033904,0.165913,42169.0,42162.0,0.00046745]
[1641881034354,0.32447752,42168.0,42162.0,0.00046745]
[1641881034545,0.30499928,42167.0,42162.0,0.00046745]
[1641881034944,0.32447752,42168.0,42162.0,0.00046745]
[1641881035346,0.01,42167.0,42162.0,0.00046745]
[1641881035947,0.30093024,42167.0,42162.0,0.00046745]
[1641881036548,0.32447752,42168.0,42162.0,0.00046745]
[1641881036849,0.0473,42169.0,42162.0,0.00046745]
[1641881037449,0.0553,42169.0,42162.0,0.00046745]
[1641881037650,0.25809929,42167.0,42162.0,0.00046745]
[1641881037849,0.0553,42169.0,42162.0,0.00046745]
[1641881038095,0.0553,42169.0,42164.0,0.00043759]
[1641881038693,0.0473,42169.0,42164.0,0.00043759]
[1641881038898,0.0473,42169.0,42167.0,0.24154683]
[1641881039296,0.371058,42168.0,42167.0,0.24154683]
[1641881039496,0.0563,42169.0,42167.0,0.24154683]
[1641881040297,0.0563,42169.0,42164.0,0.00043759]
[1641881040700,0.0473,42169.0,42164.0,0.00043759]
[1641881041299,0.0473,42169.0,42167.0,0.31535519]
[1641881041300,0.0553,42169.0,42167.0,0.31535519]
[1641881041501,0.0553,42169.0,42164.0,0.00043759]
[1641881042545,0.0473,42169.0,42164.0,0.00043759]
[1641881043146,0.059304,42168.0,42164.0,0.00043759]
[1641881043347,0.059304,42168.0,42166.0,0.00046986]
[1641881043544,0.371058,42167.0,42166.0,0.00046986]
[1641881045349,0.380058,42167.0,42166.0,0.00046986]
[1641881046401,0.698108,42167.0,42166.0,0.00046986]
[1641881047002,0.736408,42167.0,42166.0,0.00046986]
[1641881047405,0.745408,42167.0,42166.0,0.00046986]
[1641881048206,0.745408,42167.0,42166.0,0.00043681]
[1641881048604,0.736408,42167.0,42166.0,0.00043681]
[1641881049448,0.745408,42167.0,42166.0,0.00043681]
[1641881049846,0.745408,42167.0,42166.0,0.00027865]
[1641881050747,0.736408,42167.0,42166.0,0.00027865]
[1641881051349,0.745408,42167.0,42166.0,0.00027865]
[1641881051746,0.427358,42167.0,42166.0,0.00027865]
[1641881052551,0.418358,42167.0,42166.0,0.00027865]
[1641881053398,0.428358,42167.0,42166.0,0.00045405]
[1641881053999,0.528358,42167.0,42166.0,0.00045405]
[1641881054600,0.518358,42167.0,42166.0,0.00045405]
[1641881054797,0.418358,42167.0,42166.0,0.00045405]
[1641881055397,0.428358,42167.0,42166.0,0.00045405]
[1641881056698,0.418358,42167.0,42166.0,0.00045405]
[1641881057545,0.70774238,42167.0,42166.0,0.00045405]
[1641881058147,0.70774238,42167.0,42166.0,0.00042099]
[1641881058549,0.80774238,42167.0,42166.0,0.00042099]
[1641881058749,0.79774238,42167.0,42166.0,0.00042099]
[1641881058951,0.518358,42167.0,42166.0,0.00042099]
[1641881059549,0.428358,42167.0,42166.0,0.00042099]
[1641881060699,0.418358,42167.0,42166.0,0.00042099]
[1641881061399,0.428358,42167.0,42166.0,0.00042099]
[1641881062403,0.528358,42167.0,42166.0,0.00042099]
[1641881062800,0.518358,42167.0,42166.0,0.00042099]
[1641881063200,0.518358,42167.0,42166.0,0.00045405]
[1641881063400,0.526358,42167.0,42166.0,0.00045405]
[1641881064744,0.518358,42167.0,42166.0,0.00045405]
[1641881065545,0.526358,42167.0,42166.0,0.00045405]
[1641881066645,0.518358,42167.0,42166.0,0.00045405]
[1641881067448,0.526358,42167.0,42166.0,0.00045405]
[1641881068098,0.526358,42167.0,42166.0,0.00042099]
[1641881068700,0.518358,42167.0,42166.0,0.00042099]
[1641881069503,0.526358,42167.0,42166.0,0.00042099]
[1641881070105,0.426358,42167.0,42166.0,0.00042099]
[1641881070802,0.418358,42167.0,42166.0,0.00042099]
[1641881071404,0.427358,42167.0,42166.0,0.00042099]
[1641881072047,0.74535304,42167.0,42166.0,0.00042099]
[1641881072846,0.73635304,42167.0,42166.0,0.00042099]
[1641881073246,0.73635304,42167.0,42166.0,0.00045405]
[1641881073447,0.74435304,42167.0,42166.0,0.00045405]
[1641881073647,0.84435304,42167.0,42166.0,0.00045405]
[1641881074649,0.83635304,42167.0,42166.0,0.00045405]
[1641881075452,0.84635304,42167.0,42166.0,0.00045405]
[1641881076700,0.83635304,42167.0,42166.0,0.00045405]
[1641881077601,0.84635304,42167.0,42166.0,0.00045405]
[1641881078100,0.84635304,42167.0,42166.0,0.00042099]
[1641881078803,0.83635304,42167.0,42166.0,0.00042099]
[1641881079447,0.84435304,42167.0,42166.0,0.00042099]
[1641881080747,0.83635304,42167.0,42166.0,0.00042099]
[1641881081548,0.84335304,42167.0,42166.0,0.00042099]
[1641881083301,0.84335304,42167.0,42166.0,0.00045405]
[1641881083501,0.85135304,42167.0,42166.0,0.00045405]
[1641881084105,0.70271436,42167.0,42166.0,0.00045405]
[1641881084307,1.3543199,42167.0,42166.0,0.00045405]
[1641881084505,2.6133199,42167.0,42166.0,0.00045405]
[1641881084705,2.6133199,42167.0,42159.0,0.00042099]
[1641881084706,0.05932602,42164.0,42159.0,0.00042099]
[1641881084905,0.371058,42160.0,42159.0,0.00042099]
[1641881085105,0.518358,42160.0,42159.0,0.00042099]
[1641881085304,0.518358,42160.0,42156.0,0.0007698]
[1641881085504,0.371058,42157.0,42156.0,0.0007698]
[1641881085708,0.418358,42157.0,42150.0,0.60527278]
[1641881085904,0.05933384,42153.0,42150.0,0.60527278]
[1641881086106,0.0473,42152.0,42150.0,0.60527278]
[1641881086306,0.3468306,42151.0,42150.0,0.13058846]
[1641881086505,1.04194831,42151.0,42150.0,0.13058846]
[1641881086705,1.14318337,42151.0,42148.0,0.42]
[1641881086951,1.14318337,42151.0,42145.0,0.13058846]
[1641881086952,0.371058,42149.0,42145.0,0.13058846]
[1641881087152,0.2980141,42146.0,42145.0,0.13058846]
[1641881087356,1.06397873,42146.0,42145.0,0.13058846]
[1641881087652,1.75497873,42146.0,42140.0,0.7061544]
[1641881087853,0.37820639,42145.0,42140.0,0.7061544]
[1641881088053,0.0473,42144.0,42140.0,0.7061544]
[1641881088256,0.69800911,42143.0,42140.0,0.7061544]
[1641881088454,0.0473,42142.0,42140.0,0.70654232]
[1641881088955,0.0473,42142.0,42140.0,0.00038792]
[1641881089157,0.371058,42141.0,42140.0,0.00038792]
[1641881089355,0.418358,42141.0,42140.0,0.00038792]
[1641881089557,0.418358,42141.0,42136.0,1.05041773]
[1641881089758,0.0473,42141.0,42138.0,0.00069743]
[1641881090600,0.0473,42141.0,42136.0,0.34426333]
[1641881090804,0.0473,42141.0,42137.0,0.00069746]
[1641881091602,0.0553,42141.0,42137.0,0.00069746]
[1641881091802,0.0553,42141.0,42136.0,0.34426333]
[1641881092010,0.0553,42141.0,42137.0,0.00069747]
[1641881092803,0.0473,42141.0,42137.0,0.00069747]
[1641881093102,0.0473,42141.0,42136.0,0.76426333]
[1641881093305,0.0475538,42141.0,42138.0,0.00047027]
[1641881093503,0.0565538,42141.0,42138.0,0.00047027]
[1641881094750,0.0475538,42141.0,42138.0,0.00047027]
[1641881095551,0.0575538,42141.0,42138.0,0.00047027]
[1641881096751,0.0475538,42141.0,42138.0,0.00047027]
[1641881097455,0.0555538,42141.0,42138.0,0.00047027]
[1641881098100,0.0555538,42141.0,42136.0,0.4215694]
[1641881098299,0.0555538,42141.0,42137.0,0.00069746]
[1641881098799,0.0475538,42141.0,42137.0,0.00069746]
[1641881098999,0.0475538,42141.0,42136.0,0.4215694]
[1641881099399,0.0475538,42141.0,42137.0,0.00069747]
[1641881099601,0.0565538,42141.0,42137.0,0.00069747]
[1641881099801,0.0092538,42141.0,42137.0,0.00069747]
[1641881100200,0.0092538,42141.0,42138.0,0.371058]
[1641881100403,0.0092538,42141.0,42139.0,0.12496045]
[1641881100600,0.0092538,42141.0,42140.0,1.44084]
[1641881100801,0.0002538,42141.0,42140.0,0.57290146]
[1641881101004,0.0002538,42141.0,42140.0,0.91577332]
[1641881101204,0.0002538,42141.0,42140.0,1.02236799]
[1641881101404,0.0002538,42141.0,42140.0,1.12236799]
[1641881101603,0.0002538,42141.0,42140.0,1.26766799]
[1641881102053,0.00010688,42141.0,42140.0,1.26766799]
[1641881102251,0.00010688,42141.0,42140.0,1.46766799]
[1641881102453,0.00010688,42141.0,42140.0,0.91820146]
[1641881102656,0.00010688,42141.0,42140.0,1.24655704]
[1641881102853,0.67849683,42155.0,42149.0,0.29816895]
[1641881103253,0.43409838,42155.0,42149.0,0.29816895]
[1641881103452,0.00120127,42158.0,42149.0,0.29816895]
[1641881104057,0.00120127,42158.0,42151.0,0.0006971]
[1641881104254,0.9978,42161.0,42151.0,0.0006971]
[1641881104457,1.27931936,42161.0,42153.0,0.4281871]
[1641881104754,0.79825758,42160.0,42153.0,0.4281871]
[1641881105155,0.79825758,42160.0,42149.0,0.29816895]
[1641881105357,0.42719958,42160.0,42154.0,0.00069703]
[1641881105595,0.37820291,42159.0,42154.0,0.00069703]
[1641881105796,0.69048101,42159.0,42154.0,0.00069703]
[1641881105996,0.37820291,42159.0,42154.0,0.00069703]
[1641881106199,0.37820291,42159.0,42152.0,0.32704589]
[1641881106597,0.37820291,42159.0,42154.0,0.00069703]
[1641881107098,0.68245909,42159.0,42154.0,0.00069703]
[1641881107297,0.42820291,42159.0,42154.0,0.00069703]
[1641881107497,0.42820291,42159.0,42154.0,0.002]
[1641881107697,0.42820291,42159.0,42154.0,0.00269703]
[1641881107698,0.05714491,42159.0,42154.0,0.00269703]
[1641881108100,0.00733644,42159.0,42156.0,0.00053089]
[1641881108302,0.371058,42158.0,42156.0,0.00053089]
[1641881108501,0.421058,42158.0,42156.0,0.00053089]
[1641881108902,0.05,42158.0,42156.0,0.00053089]
[1641881109103,0.00733644,42159.0,42156.0,0.00053089]
[1641881109354,0.00019153,42159.0,42156.0,0.00053089]
[1641881109550,0.00019153,42159.0,42156.0,0.00453089]
[1641881110850,0.00019153,42159.0,42157.0,0.371058]
[1641881111254,0.00019153,42159.0,42156.0,0.00053089]
[1641881111654,0.00019153,42159.0,42157.0,0.057]
[1641881112853,0.00019153,42159.0,42156.0,0.00053089]
[1641881113306,0.00076546,42164.0,42154.0,0.00129973]
[1641881113599,0.48130575,42165.0,42156.0,0.075]
[1641881113802,0.37182349,42164.0,42156.0,0.075]
[1641881113998,0.37182349,42164.0,42157.0,0.33622017]
[1641881114199,0.37182349,42164.0,42156.0,0.075]
[1641881114401,0.00076549,42164.0,42156.0,0.075]
[1641881114701,0.0501689,42165.0,42156.0,0.075]
[1641881114999,0.00076551,42164.0,42157.0,0.34219966]
[1641881115200,0.00076551,42164.0,42154.0,0.38425655]
[1641881115699,0.00076551,42164.0,42161.0,0.33415634]
[1641881115900,0.0001689,42165.0,42161.0,0.33415634]
[1641881115901,0.371058,42163.0,42161.0,0.33415634]
[1641881116102,0.421058,42163.0,42161.0,0.33415634]
[1641881117555,0.421058,42163.0,42161.0,0.34215634]
[1641881118153,0.00017906,42162.0,42161.0,0.34215634]
[1641881118352,0.00017906,42162.0,42161.0,0.72944119]
[1641881118553,0.00017906,42162.0,42161.0,0.71321434]
[1641881118752,0.00017906,42162.0,42161.0,1.07459708]
[1641881119152,0.00017906,42162.0,42161.0,0.70521434]
[1641881119553,0.00017906,42162.0,42161.0,0.71921434]
[1641881120804,0.00017906,42162.0,42161.0,0.70521434]
[1641881121610,0.00017906,42162.0,42161.0,0.71721434]
[1641881122608,0.00017906,42162.0,42161.0,1.06782354]
[1641881122808,0.00017906,42162.0,42161.0,1.05606554]
[1641881123009,0.00017906,42162.0,42161.0,0.70521434]
[1641881123208,0.0008543,42164.0,42161.0,0.33468507]
[1641881123611,0.0008543,42164.0,42161.0,0.34668507]
[1641881124458,0.0008543,42165.0,42161.0,0.34668507]
[1641881124858,0.0008543,42165.0,42161.0,0.33468507]
[1641881125456,0.45722863,42169.0,42161.0,0.00052873]
[1641881125656,0.00085429,42165.0,42161.0,0.00552873]
[1641881126658,0.45722863,42169.0,42161.0,0.00552873]
[1641881126861,0.00085429,42165.0,42162.0,0.26204781]
[1641881127059,0.00085429,42165.0,42161.0,0.00052873]
[1641881127558,0.00085429,42165.0,42161.0,0.00252873]
[1641881127960,0.3081,42170.0,42161.0,0.00252873]
[1641881128202,0.00085429,42165.0,42163.0,0.28833475]
[1641881129202,0.4081,42170.0,42163.0,0.28833475]
[1641881129406,0.00085428,42166.0,42163.0,0.28833475]
[1641881129702,0.00085428,42166.0,42163.0,0.29333475]
[1641881129903,0.00085428,42166.0,42165.0,0.35309564]
[1641881130303,0.36142664,42174.0,42165.0,0.35309564]
[1641881130506,0.00085427,42168.0,42165.0,0.35309564]
[1641881130905,0.00085427,42168.0,42163.0,0.28833475]
[1641881131106,0.00085427,42168.0,42163.0,0.00052787]
[1641881131504,0.30535645,42170.0,42163.0,0.00052787]
[1641881131705,0.00085427,42168.0,42163.0,0.00452787]
[1641881132852,0.00085427,42168.0,42163.0,0.00052787]
[1641881133153,0.00085427,42168.0,42162.0,0.3203732]
[1641881133553,0.00085427,42168.0,42162.0,0.3243732]
[1641881133954,0.33682606,42173.0,42162.0,0.3243732]
[1641881134156,0.00085427,42167.0,42162.0,0.3243732]
[1641881134754,0.00085427,42167.0,42162.0,0.00052701]
[1641881135056,0.32647588,42170.0,42162.0,0.00052701]
[1641881135699,0.3149347,42169.0,42162.0,0.03752701]
[1641881135900,0.38577788,42170.0,42162.0,0.03752701]
[1641881136299,0.36005301,42173.0,42162.0,0.03752701]
[1641881136499,0.421105,42172.0,42162.0,0.03752701]
[1641881136900,0.421105,42172.0,42162.0,0.00052701]
[1641881137301,0.31636099,42166.0,42162.0,0.00052701]
[1641881137702,0.31636099,42166.0,42162.0,0.02352701]
[1641881138100,0.31636099,42166.0,42164.0,0.00052744]
[1641881139550,0.00085427,42167.0,42164.0,0.00052744]
[1641881139950,0.059305,42169.0,42164.0,0.00052744]
[1641881140150,0.37195927,42168.0,42164.0,0.00052744]
[1641881140349,0.31951698,42167.0,42164.0,0.00052744]
[1641881140551,0.59985982,42167.0,42164.0,0.00052744]
[1641881140749,0.371105,42166.0,42164.0,0.00052744]
[1641881141354,0.31475343,42165.0,42164.0,0.00052744]
[1641881141554,0.68585843,42165.0,42164.0,0.00052744]
[1641881143398,0.68585843,42165.0,42159.0,0.00052744]
[1641881143597,0.31475343,42165.0,42159.0,0.00052744]
[1641881143798,0.28119712,42167.0,42159.0,0.59873656]
[1641881143997,0.33119712,42167.0,42159.0,0.59873656]
[1641881144298,0.32287674,42166.0,42159.0,0.00052744]
[1641881144798,0.05,42167.0,42159.0,0.00052744]
[1641881145002,0.0008543,42165.0,42159.0,0.00052744]
[1641881145597,0.0008543,42165.0,42159.0,0.00852744]
[1641881145798,0.0008543,42165.0,42161.0,0.2528054]
[1641881145999,0.31490744,42166.0,42161.0,0.2528054]
[1641881146197,0.0008543,42164.0,42161.0,0.2528054]
[1641881146399,0.0008543,42164.0,42159.0,0.00852744]
[1641881146854,0.0008543,42164.0,42159.0,0.00052744]
[1641881147050,0.36490744,42166.0,42159.0,0.00052744]
[1641881147052,0.36490744,42166.0,42159.0,0.59873656]
[1641881147351,0.0008543,42164.0,42159.0,0.59873656]
[1641881147848,0.0008543,42164.0,42159.0,0.60773656]
[1641881148249,0.36490744,42166.0,42161.0,0.00052873]
[1641881148451,0.0008543,42164.0,42161.0,0.00052873]
[1641881148654,0.0473,42163.0,42161.0,0.00052873]
[1641881149549,0.371105,42162.0,42161.0,0.00052873]
[1641881149749,0.468405,42162.0,42161.0,0.00052873]
[1641881149949,0.568405,42162.0,42161.0,0.00052873]
[1641881150808,0.518405,42162.0,42161.0,0.00052873]
[1641881151005,0.568405,42162.0,42161.0,0.00052873]
[1641881151607,0.583405,42162.0,42161.0,0.00052873]
[1641881152809,1.04439845,42162.0,42161.0,0.00052873]
[1641881153006,1.02939845,42162.0,42161.0,0.00052873]
[1641881153207,1.02939845,42162.0,42154.0,0.00052873]
[1641881153406,0.32480943,42159.0,42154.0,0.00122571]
[1641881153609,0.33195387,42159.0,42154.0,0.59943483]
[1641881154005,0.00714444,42159.0,42154.0,0.59943483]
[1641881154206,0.00714444,42159.0,42154.0,0.00122571]
[1641881154452,0.00714444,42159.0,42154.0,0.00122576]
[1641881155453,0.00714444,42159.0,42154.0,0.00052873]
[1641881155652,0.01514444,42159.0,42154.0,0.01722576]
[1641881156652,0.01514444,42159.0,42154.0,0.01652873]
[1641881156853,0.01514444,42159.0,42154.0,0.00122576]
[1641881157054,0.0473,42158.0,42154.0,0.00122576]
[1641881157252,2.17222797,42158.0,42154.0,0.00122576]
[1641881157451,0.371105,42157.0,42154.0,0.00122576]
[1641881157653,0.0473,42156.0,42154.0,0.01322576]
[1641881157852,0.371105,42155.0,42154.0,0.01252873]
[1641881158105,0.418405,42155.0,42154.0,0.012]
[1641881158303,0.0473,42155.0,42154.0,0.012]
[1641881158903,0.0473,42155.0,42153.0,0.00069706]
[1641881159103,0.0473,42155.0,42149.0,0.93377353]
[1641881159304,0.0473,42155.0,42152.0,0.00069708]
[1641881159705,0.0503,42155.0,42152.0,0.00069708]
[1641881160306,0.0503,42155.0,42149.0,0.96677353]
[1641881160506,0.0503,42155.0,42151.0,0.0006971]
[1641881161106,0.0473,42155.0,42151.0,0.0006971]
[1641881161505,0.0473,42155.0,42149.0,0.93377353]
[1641881161706,0.0553,42155.0,42151.0,0.01169711]
[1641881162752,0.0553,42155.0,42151.0,0.011]
[1641881162953,0.0553,42155.0,42151.0,0.01169711]
[1641881163356,0.0553,42155.0,42153.0,0.00053219]
[1641881163555,0.31386839,42154.0,42153.0,0.00053219]
[1641881163754,0.31757397,42154.0,42153.0,0.00053219]
[1641881163956,0.3003,42155.0,42153.0,0.00053219]
[1641881165056,0.2873,42155.0,42153.0,0.00053219]
[1641881165701,0.3013,42155.0,42153.0,0.00053219]
[1641881165905,1.01550164,42154.0,42153.0,0.00053219]
[1641881166205,1.29140034,42154.0,42153.0,0.00053219]
[1641881166401,0.64140034,42154.0,42153.0,0.00053219]
[1641881166602,0.67243034,42154.0,42153.0,0.00053219]
[1641881167003,0.99220882,42154.0,42153.0,0.00053219]
[1641881167206,0.94220882,42154.0,42153.0,0.00053219]
[1641881167404,0.91117882,42154.0,42153.0,0.00053219]
[1641881167804,0.60240034,42154.0,42153.0,0.00053219]
[1641881168004,0.53061774,42154.0,42153.0,0.00053219]
[1641881168207,0.53061774,42154.0,42151.0,0.00122929]
[1641881168410,0.371105,42153.0,42151.0,0.00122929]
[1641881168605,0.0473,42152.0,42151.0,0.00122929]
[1641881168806,0.418405,42152.0,42151.0,0.00053219]
[1641881169207,0.518405,42152.0,42151.0,0.00053219]
[1641881169859,0.429405,42152.0,42151.0,0.00053219]
[1641881170056,0.529405,42152.0,42151.0,0.00053219]
[1641881170559,0.429405,42152.0,42151.0,0.00053219]
[1641881170962,0.529405,42152.0,42151.0,0.00053219]
[1641881171160,0.518405,42152.0,42151.0,0.00053219]
[1641881171757,0.529405,42152.0,42151.0,0.00053219]
[1641881173101,0.518405,42152.0,42151.0,0.00053219]
[1641881173303,0.518405,42152.0,42149.0,0.0012302]
[1641881173505,0.518405,42152.0,42149.0,0.00053305]
[1641881173903,0.530405,42152.0,42149.0,0.00053305]
[1641881174507,0.580405,42152.0,42149.0,0.00053305]
[1641881174906,0.530405,42152.0,42149.0,0.00053305]
[1641881175109,0.568405,42152.0,42149.0,0.00053305]
[1641881175907,0.580405,42152.0,42149.0,0.00053305]
[1641881177552,0.568405,42152.0,42149.0,0.00053305]
[1641881177752,0.530405,42152.0,42149.0,0.00053305]
[1641881178253,0.530405,42152.0,42148.0,0.00123022]
[1641881178656,0.1593,42152.0,42148.0,0.00123022]
[1641881178853,0.0593,42152.0,42148.0,0.00123022]
[1641881179055,0.0473,42152.0,42148.0,0.00123022]
[1641881179453,0.0473,42152.0,42148.0,0.00053305]
[1641881179654,0.0473,42152.0,42148.0,0.00123024]
[1641881179854,0.0593,42152.0,42148.0,0.00123024]
[1641881180703,0.0593,42152.0,42148.0,0.00053305]
[1641881180901,0.0593,42152.0,42148.0,0.00123024]
[1641881181101,0.0473,42152.0,42148.0,0.00123024]
[1641881181503,0.24,42155.0,42148.0,0.00123024]
[1641881181702,0.34,42155.0,42148.0,0.00123024]
[1641881181905,0.017,42152.0,42148.0,0.00053305]
[1641881182104,0.017,42152.0,42149.0,0.00069715]
[1641881182502,0.017,42152.0,42150.0,0.32905224]
[1641881183103,0.34,42155.0,42150.0,0.32905224]
[1641881183303,0.34,42155.0,42150.0,0.32958572]
[1641881183911,0.357,42155.0,42150.0,0.32958572]
[1641881184105,0.257,42155.0,42150.0,0.32958572]
[1641881184554,0.257,42155.0,42150.0,0.33028284]
[1641881185152,0.257,42155.0,42150.0,0.0012306]
[1641881185153,0.001293,42151.0,42150.0,0.0012306]
[1641881185353,0.372398,42151.0,42150.0,3.06e-05]
[1641881185553,1.878698,42151.0,42145.0,0.59930912]
[1641881185751,0.37232666,42147.0,42145.0,0.59930912]
[1641881185952,0.418405,42146.0,42145.0,0.59930912]
[1641881186154,0.52555327,42146.0,42145.0,0.0011]
[1641881187454,0.87854397,42146.0,42145.0,0.0011]
[1641881187856,0.88954397,42146.0,42145.0,0.0011]
[1641881188104,0.88954397,42146.0,42145.0,0.00156895]
[1641881189109,0.87854397,42146.0,42145.0,0.00156895]
[1641881189611,0.87854397,42146.0,42143.0,0.00179102]
[1641881189612,0.00125973,42144.0,42143.0,0.00179102]
[1641881189808,0.77862659,42144.0,42143.0,0.00179102]
[1641881190008,2.03762659,42144.0,42143.0,0.00179102]
[1641881190207,0.371105,42142.0,42140.0,0.0011]
[1641881190408,0.63952456,42139.0,42138.0,0.59820912]
[1641881190611,0.63952456,42139.0,42137.0,0.0011]
[1641881190612,1.14702138,42139.0,42137.0,0.0011]
[1641881190808,0.371105,42138.0,42137.0,0.0011]
[1641881191009,0.418405,42138.0,42137.0,0.0011]
[1641881191209,0.518405,42138.0,42137.0,0.0011]
[1641881191861,0.529405,42138.0,42137.0,0.0011]
[1641881192857,0.429405,42138.0,42137.0,0.36501067]
[1641881193058,0.0473,42145.0,42137.0,0.36501067]
[1641881193256,0.371105,42142.0,42138.0,0.3508815]
[1641881193456,0.371105,42142.0,42137.0,0.36542446]